[Event "*** Titled Tuesday Blitz"]
[Site "Chess.com"]
[Date "2020.10.20"]
[Round "4"]
[White "Alexander_Moskalenko"]
[Black "WIDBIFS"]
[Result "0-1"]
[WhiteElo "2889"]
[BlackElo "2750"]
[TimeControl "180+1"]
[EndTime "10:42:34 PDT"]
[Termination "WIDBIFS won on time"]

1. c4 {[%clk 0:03:00.9]} 1... Nf6 {[%clk 0:03:00.1]} 2. Nc3 {[%clk 0:03:00.2]}
2... g6 {[%clk 0:03:00.2]} 3. e4 {[%clk 0:02:58.4]} 3... d6 {[%clk 0:03:00.6]}
4. d4 {[%clk 0:02:58.8]} 4... Bg7 {[%clk 0:03:01]} 5. Nf3 {[%clk 0:02:59.4]}
5... O-O {[%clk 0:03:01.5]} 6. Be2 {[%clk 0:02:59.9]} 6... Bg4 {[%clk
0:03:02.2]} 7. d5 {[%clk 0:03:00.5]} 7... e5 {[%clk 0:02:59.7]} 8. Be3 {[%clk
0:02:49.3]} 8... a5 {[%clk 0:02:59.3]} 9. a3 {[%clk 0:02:43.1]} 9... Na6 {[%clk
0:02:59]} 10. h3 {[%clk 0:02:27.7]} 10... Bxf3 {[%clk 0:02:52.5]} 11. Bxf3
{[%clk 0:02:28.6]} 11... Nd7 {[%clk 0:02:52]} 12. h4 {[%clk 0:02:22.7]} 12... f5
{[%clk 0:02:52]} 13. h5 {[%clk 0:02:22.9]} 13... f4 {[%clk 0:02:50]} 14. Bd2
{[%clk 0:02:20.4]} 14... Nac5 {[%clk 0:02:48.7]} 15. hxg6 {[%clk 0:02:20.1]}
15... hxg6 {[%clk 0:02:48.5]} 16. Ke2 {[%clk 0:01:31.5]} 16... a4 {[%clk
0:02:41.3]} 17. Qg1 {[%clk 0:01:13.3]} 17... Nf6 {[%clk 0:02:11.4]} 18. g3
{[%clk 0:01:09.6]} 18... Nb3 {[%clk 0:02:04.6]} 19. gxf4 {[%clk 0:00:59.9]}
19... Nd4+ {[%clk 0:02:04.7]} 20. Ke3 {[%clk 0:01:00.4]} 20... Qe8 {[%clk
0:01:38]} 21. Bd1 {[%clk 0:00:49.4]} 21... Nd7 {[%clk 0:00:41.9]} 22. f3 {[%clk
0:00:40.6]} 22... exf4+ {[%clk 0:00:38.8]} 23. Kf2 {[%clk 0:00:39.1]} 23... Nb3
{[%clk 0:00:36.1]} 24. Bxb3 {[%clk 0:00:38.4]} 24... Bd4+ {[%clk 0:00:35.6]} 25.
Ke2 {[%clk 0:00:37.6]} 25... Bxg1 {[%clk 0:00:36.1]} 26. Raxg1 {[%clk
0:00:38.2]} 26... axb3 {[%clk 0:00:35.9]} 27. Nb5 {[%clk 0:00:38.5]} 27... Rc8
{[%clk 0:00:29.8]} 28. Bc3 {[%clk 0:00:30.5]} 28... Ne5 {[%clk 0:00:29.8]} 29.
Rg5 {[%clk 0:00:29.6]} 29... Qe7 {[%clk 0:00:25.9]} 30. Rg2 {[%clk 0:00:26.1]}
30... Rf7 {[%clk 0:00:22.2]} 31. Rgh2 {[%clk 0:00:24.7]} 31... Qf6 {[%clk
0:00:17.8]} 32. Nd4 {[%clk 0:00:22.2]} 32... Re8 {[%clk 0:00:17.2]} 33. Nxb3
{[%clk 0:00:21.2]} 33... g5 {[%clk 0:00:16.7]} 34. Rg1 {[%clk 0:00:19.8]} 34...
g4 {[%clk 0:00:14.5]} 35. Bxe5 {[%clk 0:00:17.7]} 35... Qxe5 {[%clk 0:00:13]}
36. Rxg4+ {[%clk 0:00:17.6]} 36... Rg7 {[%clk 0:00:12.6]} 37. Rxg7+ {[%clk
0:00:13.3]} 37... Kxg7 {[%clk 0:00:13.5]} 38. Kd3 {[%clk 0:00:13.7]} 38... Rh8
{[%clk 0:00:06.3]} 39. Rg2+ {[%clk 0:00:13.9]} 39... Kf7 {[%clk 0:00:07]} 40.
Nd4 {[%clk 0:00:14.8]} 40... Rh3 {[%clk 0:00:07.1]} 41. a4 {[%clk 0:00:14.2]}
41... Qh5 {[%clk 0:00:07]} 42. Rf2 {[%clk 0:00:08.2]} 42... Rh2 {[%clk
0:00:07.3]} 43. Rxh2 {[%clk 0:00:07.3]} 43... Qxh2 {[%clk 0:00:08.2]} 44. Ne6
{[%clk 0:00:07.8]} 44... Qxb2 {[%clk 0:00:07.4]} 45. Nxf4 {[%clk 0:00:05.1]}
45... Qb3+ {[%clk 0:00:07.7]} 46. Ke2 {[%clk 0:00:04.1]} 46... Qxc4+ {[%clk
0:00:07.4]} 47. Ke3 {[%clk 0:00:05]} 47... Qxa4 {[%clk 0:00:08.3]} 48. Ne6
{[%clk 0:00:05.6]} 48... Qb3+ {[%clk 0:00:08.3]} 49. Kf4 {[%clk 0:00:05.8]}
49... c5 {[%clk 0:00:08.7]} 50. Ng5+ {[%clk 0:00:03.9]} 50... Ke7 {[%clk
0:00:08.6]} 51. Ne6 {[%clk 0:00:04.8]} 51... c4 {[%clk 0:00:08.8]} 52. Nd4
{[%clk 0:00:05.2]} 52... Qb2 {[%clk 0:00:08.2]} 53. Nf5+ {[%clk 0:00:04.6]}
53... Kd7 {[%clk 0:00:08.8]} 54. Ne3 {[%clk 0:00:05.5]} 54... Qc1 {[%clk
0:00:08.9]} 55. e5 {[%clk 0:00:04.5]} 55... dxe5+ {[%clk 0:00:09.8]} 56. Ke4
{[%clk 0:00:05]} 56... Qd2 {[%clk 0:00:09]} 57. Nf5 {[%clk 0:00:04.2]} 57...
Qd3+ {[%clk 0:00:09.3]} 58. Kxe5 {[%clk 0:00:05.1]} 58... c3 {[%clk 0:00:09.6]}
59. Nd4 {[%clk 0:00:04.1]} 59... c2 {[%clk 0:00:09.4]} 60. Nxc2 {[%clk
0:00:03.7]} 60... Qxc2 {[%clk 0:00:10.3]} 61. d6 {[%clk 0:00:04.2]} 61... Qd3
{[%clk 0:00:09.9]} 0-1

[Event "*** Titled Tuesday Blitz"]
[Site "Chess.com"]
[Date "2020.10.20"]
[Round "4"]
[White "MaxLeto"]
[Black "davidkalashian"]
[Result "0-1"]
[WhiteElo "2341"]
[BlackElo "2610"]
[TimeControl "180+1"]
[EndTime "10:42:37 PDT"]
[Termination "davidkalashian won on time"]

1. g4 {[%clk 0:03:00.9]} 1... d5 {[%clk 0:02:56.1]} 2. Bg2 {[%clk 0:03:00.4]}
2... c6 {[%clk 0:02:54.9]} 3. g5 {[%clk 0:02:59.4]} 3... e5 {[%clk 0:02:53.8]}
4. d4 {[%clk 0:02:59.9]} 4... e4 {[%clk 0:02:53.3]} 5. c4 {[%clk 0:02:59.4]}
5... Bd6 {[%clk 0:02:45.1]} 6. Nc3 {[%clk 0:02:58.4]} 6... Ne7 {[%clk
0:02:45.5]} 7. Qb3 {[%clk 0:02:51.5]} 7... O-O {[%clk 0:02:29.3]} 8. Bd2 {[%clk
0:02:38.7]} 8... a6 {[%clk 0:02:02.4]} 9. cxd5 {[%clk 0:02:25.3]} 9... cxd5
{[%clk 0:02:00.7]} 10. Nxd5 {[%clk 0:02:24.4]} 10... Nxd5 {[%clk 0:01:58.7]} 11.
Qxd5 {[%clk 0:02:25.3]} 11... e3 {[%clk 0:01:58.9]} 12. Bxe3 {[%clk 0:01:53.7]}
12... Nc6 {[%clk 0:01:55.3]} 13. a3 {[%clk 0:01:01.9]} 13... Be6 {[%clk
0:01:30.3]} 14. Qe4 {[%clk 0:00:59.5]} 14... Ne7 {[%clk 0:01:21.7]} 15. Qxb7
{[%clk 0:00:45.1]} 15... Rb8 {[%clk 0:01:14.3]} 16. Qxa6 {[%clk 0:00:44.2]}
16... Rxb2 {[%clk 0:01:08.7]} 17. Nf3 {[%clk 0:00:32.5]} 17... Nd5 {[%clk
0:01:08]} 18. Bd2 {[%clk 0:00:27.6]} 18... Nb6 {[%clk 0:00:52.2]} 19. Qd3 {[%clk
0:00:15.6]} 19... Bc4 {[%clk 0:00:37.1]} 20. Qc3 {[%clk 0:00:14.4]} 20... Rb3
{[%clk 0:00:35.6]} 21. Qc2 {[%clk 0:00:13.4]} 21... Qe7 {[%clk 0:00:16.3]} 22.
e4 {[%clk 0:00:07.1]} 22... Rc8 {[%clk 0:00:13.5]} 23. e5 {[%clk 0:00:02.4]}
23... Bd5 {[%clk 0:00:10.6]} 24. Qd1 {[%clk 0:00:02.9]} 24... Bc4 {[%clk
0:00:08.4]} 25. Be3 {[%clk 0:00:01.2]} 25... Bb8 {[%clk 0:00:07.2]} 26. Nd2
{[%clk 0:00:01.4]} 26... Rxa3 {[%clk 0:00:06.7]} 27. Nxc4 {[%clk 0:00:01.6]}
27... Nxc4 {[%clk 0:00:05.6]} 28. Rxa3 {[%clk 0:00:01.6]} 28... Qxa3 {[%clk
0:00:04.2]} 29. O-O {[%clk 0:00:02.2]} 29... Nxe3 {[%clk 0:00:03.6]} 30. fxe3
{[%clk 0:00:03.1]} 30... Qxe3+ {[%clk 0:00:03.8]} 31. Kh1 {[%clk 0:00:04]} 31...
Qxg5 {[%clk 0:00:04.4]} 32. Qf3 {[%clk 0:00:03]} 32... Qe7 {[%clk 0:00:04.9]}
33. d5 {[%clk 0:00:02.8]} 33... Bxe5 {[%clk 0:00:04]} 34. Re1 {[%clk 0:00:03.3]}
34... Qd6 {[%clk 0:00:03.4]} 35. Qe4 {[%clk 0:00:03.5]} 35... Bf6 {[%clk
0:00:02.4]} 36. Qe8+ {[%clk 0:00:03.4]} 36... Rxe8 {[%clk 0:00:02.7]} 37. Rxe8+
{[%clk 0:00:04.3]} 37... Qf8 {[%clk 0:00:02.7]} 38. Rxf8+ {[%clk 0:00:04.9]}
38... Kxf8 {[%clk 0:00:03.2]} 39. Be4 {[%clk 0:00:05.8]} 39... Ke7 {[%clk
0:00:03.8]} 40. Kg2 {[%clk 0:00:05.9]} 40... h6 {[%clk 0:00:04.7]} 41. h3 {[%clk
0:00:06.5]} 41... Kd6 {[%clk 0:00:05.4]} 42. Kf3 {[%clk 0:00:07.4]} 42... Ke5
{[%clk 0:00:05.9]} 43. Ke3 {[%clk 0:00:07.4]} 43... Be7 {[%clk 0:00:06.2]} 44.
Kd3 {[%clk 0:00:08.1]} 44... f5 {[%clk 0:00:06]} 45. Bg2 {[%clk 0:00:08.3]}
45... g5 {[%clk 0:00:05.9]} 46. Ke2 {[%clk 0:00:08.8]} 46... Bd6 {[%clk
0:00:06.2]} 47. Kf2 {[%clk 0:00:09.4]} 47... Kf4 {[%clk 0:00:05.6]} 48. Bf3
{[%clk 0:00:09.6]} 48... Bc5+ {[%clk 0:00:04.9]} 49. Kg2 {[%clk 0:00:09.7]}
49... g4 {[%clk 0:00:04.8]} 50. hxg4 {[%clk 0:00:10.6]} 50... fxg4 {[%clk
0:00:05.7]} 51. Bd1 {[%clk 0:00:11.5]} 51... h5 {[%clk 0:00:05.4]} 52. Ba4
{[%clk 0:00:11.8]} 52... h4 {[%clk 0:00:05.5]} 53. Bc6 {[%clk 0:00:11.1]} 53...
h3+ {[%clk 0:00:05.3]} 54. Kh2 {[%clk 0:00:11.4]} 54... Bd6 {[%clk 0:00:04.7]}
55. Bb5 {[%clk 0:00:11.3]} 55... Kf3+ {[%clk 0:00:04.3]} 56. Kh1 {[%clk
0:00:11.5]} 56... g3 {[%clk 0:00:04.7]} 57. Bf1 {[%clk 0:00:12.1]} 57... g2+
{[%clk 0:00:03.9]} 58. Bxg2+ {[%clk 0:00:11.8]} 58... hxg2+ {[%clk 0:00:04.8]}
59. Kg1 {[%clk 0:00:11]} 59... Bc5+ {[%clk 0:00:05.7]} 60. Kh2 {[%clk 0:00:11]}
60... g1=Q+ {[%clk 0:00:05.8]} 0-1

[Event "*** Titled Tuesday Blitz"]
[Site "Chess.com"]
[Date "2020.10.20"]
[Round "4"]
[White "AlexeiShirov"]
[Black "talman67"]
[Result "1/2-1/2"]
[WhiteElo "2807"]
[BlackElo "2529"]
[TimeControl "180+1"]
[EndTime "10:42:38 PDT"]
[Termination "Game drawn by repetition"]

1. e4 {[%clk 0:03:00.9]} 1... e5 {[%clk 0:02:59.7]} 2. Nf3 {[%clk 0:02:59.8]}
2... Nc6 {[%clk 0:03:00.4]} 3. Bb5 {[%clk 0:02:59.3]} 3... a6 {[%clk 0:03:01]}
4. Ba4 {[%clk 0:02:59.3]} 4... Nf6 {[%clk 0:03:01.6]} 5. O-O {[%clk 0:02:59.4]}
5... Nxe4 {[%clk 0:03:02.2]} 6. d4 {[%clk 0:02:57.6]} 6... b5 {[%clk 0:03:02.5]}
7. Bb3 {[%clk 0:02:57.5]} 7... d5 {[%clk 0:03:03.4]} 8. dxe5 {[%clk 0:02:57.3]}
8... Be6 {[%clk 0:03:04]} 9. Be3 {[%clk 0:02:54.5]} 9... Be7 {[%clk 0:02:54.7]}
10. Nbd2 {[%clk 0:02:51.9]} 10... O-O {[%clk 0:02:53.1]} 11. c3 {[%clk
0:02:51.4]} 11... Bg4 {[%clk 0:02:45.2]} 12. Nxe4 {[%clk 0:02:50.2]} 12... dxe4
{[%clk 0:02:44.9]} 13. Qd5 {[%clk 0:02:50.1]} 13... Qxd5 {[%clk 0:02:41.6]} 14.
Bxd5 {[%clk 0:02:49]} 14... exf3 {[%clk 0:02:40.6]} 15. Bxc6 {[%clk 0:02:48.9]}
15... fxg2 {[%clk 0:02:40.1]} 16. Rfc1 {[%clk 0:02:48.6]} 16... Rab8 {[%clk
0:02:28.6]} 17. b4 {[%clk 0:02:44.8]} 17... f6 {[%clk 0:02:25.8]} 18. a4 {[%clk
0:02:39.5]} 18... fxe5 {[%clk 0:02:17.4]} 19. axb5 {[%clk 0:02:37.9]} 19... axb5
{[%clk 0:02:18.3]} 20. Ra5 {[%clk 0:02:21.3]} 20... Be2 {[%clk 0:02:16.1]} 21.
Bd5+ {[%clk 0:02:19.4]} 21... Kh8 {[%clk 0:02:14.9]} 22. Rc2 {[%clk 0:02:16]}
22... Bd3 {[%clk 0:02:09.4]} 23. Rca2 {[%clk 0:02:11.4]} 23... e4 {[%clk
0:02:08.9]} 24. Ra7 {[%clk 0:02:07.6]} 24... Rbd8 {[%clk 0:01:31.9]} 25. Rxc7
{[%clk 0:01:51.5]} 25... Bd6 {[%clk 0:00:56.5]} 26. Rb7 {[%clk 0:01:51.2]} 26...
Bxh2+ {[%clk 0:00:54.7]} 27. Kxg2 {[%clk 0:01:46.9]} 27... Rxd5 {[%clk
0:00:55.6]} 28. Kxh2 {[%clk 0:01:46.8]} 28... h6 {[%clk 0:00:42.2]} 29. Raa7
{[%clk 0:01:44.4]} 29... Rg8 {[%clk 0:00:38.7]} 30. Kg3 {[%clk 0:01:37.7]} 30...
Kh7 {[%clk 0:00:32.3]} 31. Rb6 {[%clk 0:01:35.6]} 31... Rh5 {[%clk 0:00:30.7]}
32. Bd4 {[%clk 0:01:34.8]} 32... Rg5+ {[%clk 0:00:29.5]} 33. Kh4 {[%clk
0:01:33.1]} 33... Rf8 {[%clk 0:00:22.8]} 34. Be3 {[%clk 0:01:31.2]} 34... Rg6
{[%clk 0:00:17.6]} 35. Rxg6 {[%clk 0:01:17.1]} 35... Kxg6 {[%clk 0:00:18.5]} 36.
Bd4 {[%clk 0:01:13.4]} 36... Rf7 {[%clk 0:00:18.8]} 37. Ra6+ {[%clk 0:01:12.5]}
37... Kh7 {[%clk 0:00:11.7]} 38. Kg3 {[%clk 0:01:12.4]} 38... g5 {[%clk
0:00:10.9]} 39. Bf6 {[%clk 0:01:04.4]} 39... Kg6 {[%clk 0:00:09.9]} 40. Bd4+
{[%clk 0:01:01.1]} 40... Kh5 {[%clk 0:00:09.8]} 41. Rd6 {[%clk 0:00:58]} 41...
Rf3+ {[%clk 0:00:09.5]} 42. Kg2 {[%clk 0:00:57.5]} 42... Rf7 {[%clk 0:00:10.4]}
43. Be3 {[%clk 0:00:54.7]} 43... Rh7 {[%clk 0:00:05.9]} 44. Rf6 {[%clk
0:00:53.2]} 44... Rd7 {[%clk 0:00:05.7]} 45. Bc5 {[%clk 0:00:52.9]} 45... Be2
{[%clk 0:00:02.5]} 46. Bf8 {[%clk 0:00:50.9]} 46... Bf3+ {[%clk 0:00:03.4]} 47.
Kg3 {[%clk 0:00:50.2]} 47... Rh7 {[%clk 0:00:03.4]} 48. Rb6 {[%clk 0:00:47.3]}
48... Be2 {[%clk 0:00:03.8]} 49. Re6 {[%clk 0:00:45]} 49... Bd3 {[%clk
0:00:03.6]} 50. Rf6 {[%clk 0:00:43.3]} 50... g4 {[%clk 0:00:03.6]} 51. Bc5
{[%clk 0:00:39.8]} 51... Kg5 {[%clk 0:00:03.4]} 52. Rd6 {[%clk 0:00:38.8]} 52...
Rf7 {[%clk 0:00:03.1]} 53. Be3+ {[%clk 0:00:38]} 53... Kf5 {[%clk 0:00:03.4]}
54. Rxh6 {[%clk 0:00:37.2]} 54... Ke5 {[%clk 0:00:02.7]} 55. Kxg4 {[%clk
0:00:36.1]} 55... Kd5 {[%clk 0:00:02.6]} 56. Rh5+ {[%clk 0:00:35]} 56... Kc4
{[%clk 0:00:02.5]} 57. Rc5+ {[%clk 0:00:34.7]} 57... Kb3 {[%clk 0:00:02.9]} 58.
Bd4 {[%clk 0:00:34.4]} 58... Rf3 {[%clk 0:00:02.6]} 59. Kg5 {[%clk 0:00:34]}
59... Rf8 {[%clk 0:00:02.3]} 60. Kg6 {[%clk 0:00:33.5]} 60... Rf3 {[%clk
0:00:02.8]} 61. Kg7 {[%clk 0:00:32.6]} 61... Rf4 {[%clk 0:00:01.5]} 62. Be3
{[%clk 0:00:31.9]} 62... Rf3 {[%clk 0:00:01.9]} 63. Rc6 {[%clk 0:00:30.9]} 63...
Rf5 {[%clk 0:00:01.8]} 64. Bd4 {[%clk 0:00:29.8]} 64... Rf3 {[%clk 0:00:02.7]}
65. Rc5 {[%clk 0:00:28.6]} 65... Rf4 {[%clk 0:00:02.8]} 66. Rh5 {[%clk
0:00:25.9]} 66... Rf3 {[%clk 0:00:03.5]} 67. Rh8 {[%clk 0:00:23.8]} 67... Kc4
{[%clk 0:00:03.5]} 68. Rc8+ {[%clk 0:00:22.6]} 68... Kb3 {[%clk 0:00:04.4]} 69.
Rc5 {[%clk 0:00:21.7]} 1/2-1/2

[Event "*** Titled Tuesday Blitz"]
[Site "Chess.com"]
[Date "2020.10.20"]
[Round "4"]
[White "kleopl"]
[Black "JoachimMouhamad"]
[Result "1-0"]
[WhiteElo "2449"]
[BlackElo "2305"]
[TimeControl "180+1"]
[EndTime "10:42:39 PDT"]
[Termination "kleopl won on time"]

1. e4 {[%clk 0:03:00.9]} 1... e5 {[%clk 0:02:59.9]} 2. Nf3 {[%clk 0:03:00.3]}
2... Nc6 {[%clk 0:02:59.5]} 3. Bc4 {[%clk 0:02:59.4]} 3... Nf6 {[%clk
0:02:59.5]} 4. d3 {[%clk 0:02:59.2]} 4... Be7 {[%clk 0:02:57.4]} 5. O-O {[%clk
0:02:58.2]} 5... O-O {[%clk 0:02:57.2]} 6. Re1 {[%clk 0:02:57.3]} 6... d6 {[%clk
0:02:56]} 7. c3 {[%clk 0:02:53.4]} 7... Na5 {[%clk 0:02:52.7]} 8. Bb5 {[%clk
0:02:53]} 8... a6 {[%clk 0:02:50.4]} 9. Ba4 {[%clk 0:02:53.1]} 9... c5 {[%clk
0:02:50]} 10. h3 {[%clk 0:02:46.8]} 10... Nc6 {[%clk 0:02:49.8]} 11. d4 {[%clk
0:02:44.9]} 11... cxd4 {[%clk 0:02:47.3]} 12. cxd4 {[%clk 0:02:44.7]} 12... exd4
{[%clk 0:02:46]} 13. Nxd4 {[%clk 0:02:44.2]} 13... Nxd4 {[%clk 0:02:44.4]} 14.
Qxd4 {[%clk 0:02:45.1]} 14... Be6 {[%clk 0:02:38.8]} 15. Nc3 {[%clk 0:02:44.1]}
15... b5 {[%clk 0:02:35.8]} 16. Bc2 {[%clk 0:02:42.5]} 16... Nd7 {[%clk
0:02:34.1]} 17. Bf4 {[%clk 0:02:37.6]} 17... Ne5 {[%clk 0:02:08.9]} 18. Bxe5
{[%clk 0:02:25.8]} 18... dxe5 {[%clk 0:02:09.1]} 19. Qxe5 {[%clk 0:02:26.7]}
19... Bf6 {[%clk 0:02:02.7]} 20. Qg3 {[%clk 0:02:21.4]} 20... b4 {[%clk
0:01:42.8]} 21. Rad1 {[%clk 0:02:07.4]} 21... Qb8 {[%clk 0:01:37.9]} 22. e5
{[%clk 0:01:27.1]} 22... bxc3 {[%clk 0:01:36.6]} 23. Qd3 {[%clk 0:01:26]} 23...
g6 {[%clk 0:01:24.9]} 24. exf6 {[%clk 0:01:25.7]} 24... cxb2 {[%clk 0:01:05.9]}
25. Qe3 {[%clk 0:01:11.8]} 25... Kh8 {[%clk 0:01:05.7]} 26. Qh6 {[%clk
0:01:11.4]} 26... Rg8 {[%clk 0:01:05.2]} 27. Bb1 {[%clk 0:00:49.8]} 27... Qf8
{[%clk 0:01:02.3]} 28. Qd2 {[%clk 0:00:43.7]} 28... Qa3 {[%clk 0:00:59.2]} 29.
Re3 {[%clk 0:00:41.2]} 29... Qa4 {[%clk 0:00:48.5]} 30. Rde1 {[%clk 0:00:35.7]}
30... Qf4 {[%clk 0:00:45.6]} 31. Qxb2 {[%clk 0:00:33.7]} 31... Rab8 {[%clk
0:00:44.4]} 32. Qa3 {[%clk 0:00:32.3]} 32... Qxf6 {[%clk 0:00:42.4]} 33. Qxa6
{[%clk 0:00:31.7]} 33... Rb2 {[%clk 0:00:38.4]} 34. R3e2 {[%clk 0:00:28.9]}
34... Rgb8 {[%clk 0:00:36.8]} 35. Rxb2 {[%clk 0:00:15.3]} 35... Rxb2 {[%clk
0:00:36.8]} 36. Qa7 {[%clk 0:00:13.3]} 36... Kg7 {[%clk 0:00:35]} 37. a4 {[%clk
0:00:10.4]} 37... Bd5 {[%clk 0:00:22.8]} 38. Qe3 {[%clk 0:00:08.6]} 38... Bb7
{[%clk 0:00:17.8]} 39. a5 {[%clk 0:00:08.2]} 39... Qc6 {[%clk 0:00:17.5]} 40.
Be4 {[%clk 0:00:04.9]} 40... Qxe4 {[%clk 0:00:15.2]} 41. Qxe4 {[%clk 0:00:05.8]}
41... Bxe4 {[%clk 0:00:15.4]} 42. Rxe4 {[%clk 0:00:06.2]} 42... Ra2 {[%clk
0:00:15]} 43. Re5 {[%clk 0:00:06.6]} 43... Kf6 {[%clk 0:00:13.8]} 44. Rb5 {[%clk
0:00:06.6]} 44... h5 {[%clk 0:00:13.3]} 45. g3 {[%clk 0:00:06.8]} 45... Kg7
{[%clk 0:00:12.8]} 46. Kg2 {[%clk 0:00:07.1]} 46... Ra1 {[%clk 0:00:13]} 47. h4
{[%clk 0:00:06.9]} 47... Ra3 {[%clk 0:00:12.6]} 48. Rc5 {[%clk 0:00:06.3]} 48...
Ra2 {[%clk 0:00:12.8]} 49. Kf3 {[%clk 0:00:06.1]} 49... Kf6 {[%clk 0:00:10.2]}
50. Ke3 {[%clk 0:00:06.2]} 50... Kg7 {[%clk 0:00:10.4]} 51. Re5 {[%clk 0:00:06]}
51... Kf6 {[%clk 0:00:08]} 52. Rb5 {[%clk 0:00:05.5]} 52... Ke6 {[%clk
0:00:04.2]} 53. Rb6+ {[%clk 0:00:05.4]} 53... Ke5 {[%clk 0:00:03.9]} 54. a6
{[%clk 0:00:05.6]} 54... Ra3+ {[%clk 0:00:01.9]} 55. Ke2 {[%clk 0:00:05.9]}
55... Ra2+ {[%clk 0:00:02.2]} 56. Kf3 {[%clk 0:00:05.6]} 56... Ra3+ {[%clk
0:00:02.6]} 57. Kg2 {[%clk 0:00:05.8]} 57... Ra2 {[%clk 0:00:02.6]} 58. Rb7
{[%clk 0:00:06]} 58... Kf6 {[%clk 0:00:02.7]} 59. a7 {[%clk 0:00:06]} 59... Kg7
{[%clk 0:00:02.9]} 60. Kf3 {[%clk 0:00:06.2]} 60... Ra3+ {[%clk 0:00:03.2]} 61.
Ke4 {[%clk 0:00:06.4]} 61... Ra5 {[%clk 0:00:02.8]} 62. Kd4 {[%clk 0:00:06.4]}
62... Kf6 {[%clk 0:00:03.1]} 63. Kc4 {[%clk 0:00:06.6]} 63... Ra1 {[%clk
0:00:02]} 64. Kb5 {[%clk 0:00:06.5]} 64... Rb1+ {[%clk 0:00:02]} 65. Kc6 {[%clk
0:00:06.8]} 65... Rc1+ {[%clk 0:00:02.1]} 66. Kd7 {[%clk 0:00:07]} 1-0

[Event "*** Titled Tuesday Blitz"]
[Site "Chess.com"]
[Date "2020.10.20"]
[Round "4"]
[White "Zemerovv"]
[Black "Qvalda"]
[Result "0-1"]
[WhiteElo "2280"]
[BlackElo "2429"]
[TimeControl "180+1"]
[EndTime "10:42:39 PDT"]
[Termination "Qvalda won on time"]

1. g3 {[%clk 0:02:49.5]} 1... g6 {[%clk 0:02:57.2]} 2. Bg2 {[%clk 0:02:50.4]}
2... Bg7 {[%clk 0:02:57.7]} 3. e4 {[%clk 0:02:48.8]} 3... d6 {[%clk 0:02:55.5]}
4. d4 {[%clk 0:02:48.5]} 4... Nc6 {[%clk 0:02:55.6]} 5. Be3 {[%clk 0:02:48]}
5... e5 {[%clk 0:02:27.2]} 6. Ne2 {[%clk 0:02:46.1]} 6... Bg4 {[%clk 0:02:21.4]}
7. f3 {[%clk 0:02:45.7]} 7... Bd7 {[%clk 0:02:19.3]} 8. c4 {[%clk 0:02:45.1]}
8... h5 {[%clk 0:02:10.8]} 9. h4 {[%clk 0:02:41.4]} 9... Bh6 {[%clk 0:02:04.4]}
10. Qd2 {[%clk 0:02:39.7]} 10... Bxe3 {[%clk 0:02:03.7]} 11. Qxe3 {[%clk
0:02:38.7]} 11... Nf6 {[%clk 0:02:01.2]} 12. Nbc3 {[%clk 0:02:37.6]} 12... O-O
{[%clk 0:02:00.6]} 13. O-O-O {[%clk 0:02:36.5]} 13... Rb8 {[%clk 0:01:59.6]} 14.
d5 {[%clk 0:02:36.1]} 14... Na5 {[%clk 0:01:55.7]} 15. b3 {[%clk 0:02:28]} 15...
b5 {[%clk 0:01:54.9]} 16. c5 {[%clk 0:02:26.1]} 16... b4 {[%clk 0:01:53.9]} 17.
Nb1 {[%clk 0:02:16.5]} 17... Bb5 {[%clk 0:01:54]} 18. Rd2 {[%clk 0:02:11.2]}
18... Nb7 {[%clk 0:01:40.9]} 19. c6 {[%clk 0:01:55.5]} 19... Nc5 {[%clk
0:01:39.5]} 20. g4 {[%clk 0:01:43.1]} 20... Bxe2 {[%clk 0:01:31.3]} 21. Qxe2
{[%clk 0:01:36.2]} 21... a5 {[%clk 0:01:29.5]} 22. Rc2 {[%clk 0:01:29.7]} 22...
a4 {[%clk 0:01:24.5]} 23. Nd2 {[%clk 0:01:27.4]} 23... Ra8 {[%clk 0:01:17.3]}
24. Rxc5 {[%clk 0:01:24.6]} 24... dxc5 {[%clk 0:01:16.8]} 25. Kb2 {[%clk
0:01:16.5]} 25... axb3 {[%clk 0:01:11]} 26. Nxb3 {[%clk 0:01:12.6]} 26... Qb8
{[%clk 0:00:59.5]} 27. Ra1 {[%clk 0:01:04.3]} 27... Qa7 {[%clk 0:00:56.3]} 28.
Bh3 {[%clk 0:00:56]} 28... Qa3+ {[%clk 0:00:49.4]} 29. Kb1 {[%clk 0:00:55.7]}
29... Ra7 {[%clk 0:00:40.3]} 30. g5 {[%clk 0:00:47.1]} 30... Rfa8 {[%clk
0:00:34.2]} 31. Qb2 {[%clk 0:00:46.4]} 31... Qxb2+ {[%clk 0:00:29.2]} 32. Kxb2
{[%clk 0:00:46]} 32... c4 {[%clk 0:00:18.1]} 33. gxf6 {[%clk 0:00:43]} 33...
cxb3 {[%clk 0:00:18.1]} 34. Kxb3 {[%clk 0:00:42.2]} 34... Ra3+ {[%clk
0:00:17.6]} 35. Kxb4 {[%clk 0:00:41.4]} 35... Rxf3 {[%clk 0:00:13]} 36. Bd7
{[%clk 0:00:38]} 36... Rxf6 {[%clk 0:00:12.7]} 37. a4 {[%clk 0:00:35.5]} 37...
Kf8 {[%clk 0:00:12.9]} 38. a5 {[%clk 0:00:35]} 38... Ke7 {[%clk 0:00:12.9]} 39.
Kc5 {[%clk 0:00:34.2]} 39... Rf2 {[%clk 0:00:11]} 40. d6+ {[%clk 0:00:32]} 40...
cxd6+ {[%clk 0:00:10.9]} 41. Kc4 {[%clk 0:00:27.2]} 41... Rc2+ {[%clk
0:00:10.5]} 42. Kd3 {[%clk 0:00:25.9]} 42... Rc5 {[%clk 0:00:10.2]} 43. a6
{[%clk 0:00:25.1]} 43... d5 {[%clk 0:00:09.8]} 44. exd5 {[%clk 0:00:23.5]} 44...
Rxd5+ {[%clk 0:00:10.7]} 45. Ke4 {[%clk 0:00:21.3]} 45... Kd6 {[%clk 0:00:10.8]}
46. a7 {[%clk 0:00:19.4]} 46... Rd4+ {[%clk 0:00:09.4]} 47. Ke3 {[%clk
0:00:17.6]} 47... Rc4 {[%clk 0:00:08.5]} 48. Ra6 {[%clk 0:00:18]} 48... Kc7
{[%clk 0:00:08.3]} 49. Kd3 {[%clk 0:00:16.4]} 49... Rc1 {[%clk 0:00:08.1]} 50.
Ke4 {[%clk 0:00:16.1]} 50... Rc5 {[%clk 0:00:07.4]} 51. Kd3 {[%clk 0:00:15.4]}
51... f5 {[%clk 0:00:07.3]} 52. Ke3 {[%clk 0:00:15.2]} 52... e4 {[%clk
0:00:07.4]} 53. Kd4 {[%clk 0:00:14.2]} 53... Rc1 {[%clk 0:00:06.9]} 54. Ra3
{[%clk 0:00:10.9]} 54... Rd1+ {[%clk 0:00:04.9]} 55. Ke5 {[%clk 0:00:09.7]}
55... Rd3 {[%clk 0:00:04.2]} 56. Ra4 {[%clk 0:00:06.2]} 56... e3 {[%clk
0:00:04.4]} 57. Ra1 {[%clk 0:00:05]} 57... e2 {[%clk 0:00:03.7]} 58. Re1 {[%clk
0:00:03.8]} 58... Re3+ {[%clk 0:00:03.9]} 59. Kf6 {[%clk 0:00:02.5]} 59... Re4
{[%clk 0:00:04]} 60. Kxg6 {[%clk 0:00:02.2]} 60... f4 {[%clk 0:00:04.3]} 61. Kf5
{[%clk 0:00:01.4]} 61... Re3 {[%clk 0:00:03.6]} 0-1